fUSD/lending_fUSD_20260413
["ID","MTS","AMOUNT","RATE_DAILY","PERIOD"]
[420407526,1776084072542,-500.0,0.00043836,31]
[420407527,1776084072577,-500.0,0.00043836,31]
[420407528,1776084072623,-500.0,0.00043836,31]
[420407529,1776084072660,-500.0,0.00043836,31]
[420407530,1776084072706,-500.0,0.00043836,31]
[420407531,1776084072817,-500.0,0.00043836,31]
[420407532,1776084072860,-500.0,0.00043836,31]
[420407533,1776084072903,-500.0,0.00043836,31]
[420407534,1776084072950,-500.0,0.00043836,31]
[420407535,1776084072993,-500.0,0.00043836,31]
[420407536,1776084073033,-500.0,0.00043836,31]
[420407537,1776084073074,-500.0,0.00043836,31]
[420407538,1776084073134,-500.0,0.00043836,31]
[420407539,1776084073187,-500.0,0.00043836,31]
[420407540,1776084073222,-500.0,0.00043836,31]
[420407541,1776084073258,-500.0,0.00043836,31]
[420407542,1776084073306,-500.0,0.00043836,31]
[420407543,1776084073630,-163.83820385,0.00043836,31]
[420407544,1776084073680,-500.0,0.00043836,31]
[420407545,1776084073721,-500.0,0.00043836,31]
[420407546,1776084073763,-500.0,0.00043836,31]
[420407547,1776084073803,-500.0,0.00043836,31]
[420407548,1776084073854,-500.0,0.00043836,31]
[420407549,1776084073903,-377.2,0.00044,120]
[420407550,1776084073974,-325.61,0.00044,120]
[420407551,1776084074024,-500.0,0.00044171,120]
[420407552,1776084074065,-384.75,0.000445,120]
[420407553,1776084074111,-332.13,0.000445,120]
[420407554,1776084074170,-490.08,0.0004469,120]
[420407555,1776084074210,-500.0,0.00044719,120]
[420407556,1776084074252,-392.44,0.00045,120]
[420407557,1776084074298,-338.77,0.00045,120]
[420407558,1776084074450,-500.0,0.00045267,120]
[420407559,1776084074488,-500.0,0.00045479,120]
[420407560,1776084074524,-500.0,0.00045479,120]
[420407561,1776084074562,-500.0,0.00045479,120]
[420407562,1776084074601,-500.0,0.00045479,120]
[420407563,1776084074639,-500.0,0.00045479,120]
[420407564,1776084074677,-500.0,0.00045479,120]
[420407565,1776084074717,-248.09,0.00045479,120]
[420407566,1776084074753,-500.0,0.00045479,120]
[420407567,1776084074792,-500.0,0.00045479,120]
[420407568,1776084074835,-500.0,0.00045479,120]
[420407569,1776084074881,-362.49,0.00045479,120]
[420407570,1776084074920,-500.0,0.00045479,120]
[420407571,1776084074957,-500.0,0.00045479,120]
[420407572,1776084074995,-500.0,0.00045479,120]
[420407573,1776084075034,-500.0,0.00045479,120]
[420407574,1776084075068,-500.0,0.00045479,120]
[420407575,1776084075104,-500.0,0.00045479,120]
[420407576,1776084075147,-500.0,0.00045499,120]
[420407577,1776084075182,-151.0,0.00045499,120]
[420407578,1776084075217,-518.5,0.00045499,120]
[420407579,1776084075255,-400.29,0.000455,120]
[420407580,1776084075287,-151.0,0.000455,30]
[420407581,1776084075326,-151.0,0.000455,30]
[420407582,1776084075374,-1000000.0,0.000455,120]
[420407583,1776084075413,-1000000.0,0.000455,120]
[420407584,1776084075481,-1000000.0,0.000455,120]
[420407585,1776084075518,-345.54,0.000455,120]
[420407586,1776084075571,-1000000.0,0.000455,120]
[420407587,1776084075606,-1000000.0,0.000455,120]
[420407588,1776084075668,-1000000.0,0.000455,120]
[420407589,1776084075715,-1000000.0,0.000455,120]
[420407590,1776084075757,-1000000.0,0.000455,120]
[420407591,1776084075808,-954587.48796147,0.000455,120]
[420407592,1776084079023,1000.0,0.0003,120]
[420407593,1776084081299,156.0,0.0001,2]
[420407594,1776084083814,150.0,0.000296,120]
[420407595,1776084084264,172.0,0.000296,120]
[420407596,1776084086989,-258.0,0.000296,60]
[420407597,1776084087047,-245.0,0.00032917,30]
[420407598,1776084087087,-245.0,0.00033917,30]
[420407599,1776084087123,-245.0,0.00034917,30]
[420407600,1776084087175,-500.0,0.00043836,31]
[420407601,1776084087220,-500.0,0.00043836,31]
[420407602,1776084087258,-500.0,0.00043836,31]
[420407603,1776084087291,-500.0,0.00043836,31]
[420407604,1776084087334,-500.0,0.00043836,31]
[420407605,1776084087373,-500.0,0.00043836,31]
[420407606,1776084087410,-600.0,0.00043836,31]
[420407607,1776084087460,-500.0,0.00043836,31]
[420407608,1776084087501,-500.0,0.00043836,31]
[420407609,1776084087538,-500.0,0.00043836,31]
[420407610,1776084087580,-500.0,0.00043836,31]
[420407611,1776084087639,-500.0,0.00043836,31]
[420407612,1776084087720,-500.0,0.00043836,31]
[420407613,1776084087779,-500.0,0.00043836,31]
[420407614,1776084087823,-500.0,0.00043836,31]
[420407615,1776084087898,-500.0,0.00043836,31]
[420407616,1776084087947,-400.0,0.00043836,31]
[420407617,1776084087996,-500.0,0.00043836,31]
[420407618,1776084088162,-500.0,0.00045479,120]
[420407619,1776084088202,-500.0,0.00045479,120]
[420407620,1776084088243,-500.0,0.00045479,120]
[420407621,1776084088289,-500.0,0.00045479,120]
[420407622,1776084088347,-500.0,0.00045479,120]
[420407623,1776084088448,-500.0,0.00045479,120]
[420407624,1776084088497,-500.0,0.00045479,120]
[420407625,1776084088568,-500.0,0.00045479,120]
[420407626,1776084088610,-500.0,0.00045479,120]
[420407627,1776084088645,-500.0,0.00045479,120]
[420407628,1776084088677,-500.0,0.00045479,120]
[420407629,1776084088710,-500.0,0.00045479,120]
[420407630,1776084088751,-500.0,0.00045479,120]
[420407631,1776084088785,-500.0,0.00045479,120]
[420407632,1776084088823,-500.0,0.00045479,120]
[420407633,1776084088859,-500.0,0.00045479,120]
[420407634,1776084088895,-166.00917546,0.00045479,120]
[420407635,1776084088949,-151.0,0.00045499,120]
[420407636,1776084088989,-327.803251,0.00045499,120]
[420407637,1776084089042,-151.0,0.00045499,120]
[420407638,1776084089113,-151.0,0.00045499,120]
[420407639,1776084089164,-620.0,0.00045499,120]
[420407640,1776084089225,-151.0,0.00045499,120]
[420407641,1776084089286,-151.0,0.00045499,120]
[420407642,1776084089333,-642.94,0.00045499,120]
[420407643,1776084089420,-151.0,0.00045499,120]
[420407644,1776084089489,-151.0,0.00045499,120]
[420407645,1776084089551,-307.6226199,0.00045499,120]
[420407646,1776084089620,-151.0,0.00045499,120]
[420407647,1776084089657,-151.0,0.00045499,120]
[420407648,1776084089718,-151.0,0.00045499,120]
[420407649,1776084089749,-218.4242695,0.00045499,120]
[420407650,1776084089793,-151.0,0.00045499,120]
[420407651,1776084089830,-151.0,0.00045499,120]
[420407652,1776084089886,-1030.0,0.00045499,120]
[420407653,1776084089955,-151.0,0.00045499,120]
[420407654,1776084090005,-1068.11,0.00045499,120]
[420407655,1776084090040,-1107.63007,0.00045499,120]
[420407656,1776084090089,-200.0,0.00045499,120]
[420407657,1776084090130,-1148.61238259,0.00045499,120]
[420407658,1776084090165,-1191.11104075,0.00045499,120]
[420407659,1776084090202,-1235.18214925,0.00045499,120]
[420407660,1776084090235,-370.72266194,0.00045499,120]
[420407661,1776084090296,-500.0,0.00045499,120]
[420407662,1776084090360,-500.0,0.00045499,120]
[420407663,1776084090394,-151.0,0.00045499,120]
[420407664,1776084090434,-500.0,0.00045499,120]
[420407665,1776084090750,-151.0,0.00045499,120]
[420407666,1776084090788,-160.0,0.00045499,120]
[420407667,1776084090835,-500.0,0.00045499,120]
[420407668,1776084090875,-151.0,0.00045499,120]
[420407669,1776084090916,-151.0,0.00045499,120]
[420407670,1776084090953,-160.0,0.00045499,120]
[420407671,1776084091000,-156.587,0.00045499,120]
[420407672,1776084091047,-45412.51203853,0.000455,120]
[420407673,1776084091095,-1000000.0,0.000455,120]
[420407674,1776084091153,-1000000.0,0.000455,120]
[420407675,1776084091205,-900000.0,0.000455,120]
[420407676,1776084091246,-1000000.0,0.000455,120]
[420407677,1776084091309,-5000000.0,0.000455,120]
[420407678,1776084091353,-21916.73334108,0.000455,120]
[420407679,1776084095703,200.0,0.00014732,30]
[420407680,1776084096417,201.0,0.0003,120]
[420407681,1776084133778,217.44,0.0001,2]
[420407682,1776084134019,2244.15,0.00030082,120]
[420407683,1776084134824,2244.15,0.00030082,120]
[420407684,1776084203956,429.3109805,0.00026137,120]
[420407685,1776084224702,-320.0,0.00011547,2]
[420407686,1776084224736,-153.0,0.00011547,2]
[420407687,1776084224770,-161.79531961,0.00012547,2]
[420407688,1776084224804,-150.0,0.00012547,2]
[420407689,1776084224839,-194.94658058,0.00012547,2]
[420407690,1776084224921,-250.0,0.00012702,2]
[420407691,1776084224973,-194.99,0.00014761,2]
[420407692,1776084225065,-858.583723,0.0001482,2]
[420407693,1776084225127,-150.0,0.00014895,2]
[420407694,1776084225165,-150.0,0.00014895,2]
[420407695,1776084225203,-150.0,0.00014895,2]
[420407696,1776084225230,-150.0,0.0001497,2]
[420407697,1776084225254,-258.82463581,0.00015,15]
[420407698,1776084225281,-217.44,0.00015,2]
[420407699,1776084225304,-9999.99,0.00015,2]
[420407700,1776084225327,-1087.91,0.00015,2]
[420407701,1776084225351,-999.99,0.00015,2]
[420407702,1776084225374,-9999.99,0.00015,2]
[420407703,1776084225398,-1419.20721119,0.00015045,2]
[420407704,1776084225421,-434.89,0.00015051,2]
[420407705,1776084225449,-250.0,0.00015059,2]
[420407706,1776084225475,-2000.0,0.00015059,2]
[420407707,1776084225506,-800.0,0.00015068,2]
[420407708,1776084225534,-150.0,0.00015148,2]
[420407709,1776084225571,-150.0,0.00015169,2]
[420407710,1776084225600,-150.0,0.00015169,2]
[420407711,1776084225639,-150.0,0.00015169,2]
[420407712,1776084225676,-200.0,0.000154,5]
[420407713,1776084225712,-800.0,0.000154,5]
[420407714,1776084225746,-166.57,0.00015422,2]
[420407715,1776084225774,-150.0,0.00015443,2]
[420407716,1776084225806,-150.0,0.00015443,2]
[420407717,1776084225843,-400.0,0.000155,5]
[420407718,1776084225879,-1600.0,0.000155,5]
[420407719,1776084225910,-1604.67,0.00015507,2]
[420407720,1776084225937,-194.99,0.00015581,2]
[420407721,1776084225965,-600.0,0.000156,5]
[420407722,1776084225996,-2400.0,0.000156,5]
[420407723,1776084226025,-250.0,0.00015614,2]
[420407724,1776084226058,-900.0,0.000157,5]
[420407725,1776084226097,-3200.0,0.000157,5]
[420407726,1776084226137,-150.0,0.000158,2]
[420407727,1776084226185,-1100.0,0.000158,5]
[420407728,1776084226234,-4000.0,0.000158,5]
[420407729,1776084226316,-1200.0,0.00015872,2]
[420407730,1776084226359,-300.0,0.00015872,2]
[420407731,1776084226395,-1604.67,0.00015895,2]
[420407732,1776084226431,-11072.42845875,0.00015897,2]
[420407733,1776084226469,-11072.42845875,0.000159,2]
[420407734,1776084226509,-200.0,0.000159,5]
[420407735,1776084226544,-1882.98917096,0.000159,2]
[420407736,1776084226586,-800.0,0.000159,5]
[420407737,1776084226623,-500.0,0.000159,2]
[420407738,1776084226653,-15159.53542694,0.000159,2]
[420407739,1776084226690,-2725.37242156,0.000159,2]
[420407740,1776084226724,-4067.36497049,0.00015918,2]
[420407741,1776084226757,-860.53,0.00015943,2]
[420407742,1776084226790,-500.0,0.00015943,2]
[420407743,1776084226819,-500.0,0.00015943,2]
[420407744,1776084226850,-500.0,0.00015943,2]
[420407745,1776084226886,-172.92276185,0.00015943,2]
[420407746,1776084226930,-266.8965379,0.00015943,2]
[420407747,1776084226987,-500.0,0.00015943,2]
[420407748,1776084227062,-206.91057218,0.00015943,2]
[420407749,1776084227086,-235.35768831,0.00015943,2]
[420407750,1776084227117,-500.0,0.00015943,2]
[420407751,1776084227149,-219.93902778,0.00015943,2]
[420407752,1776084227183,-500.0,0.00015943,2]
[420407753,1776084227227,-500.0,0.00015943,2]
[420407754,1776084227262,-500.0,0.00015943,2]
[420407755,1776084227319,-500.0,0.00015943,2]
[420407756,1776084227357,-500.0,0.00015943,2]
[420407757,1776084227398,-500.0,0.00015943,2]
[420407758,1776084227436,-500.0,0.00015943,2]
[420407759,1776084227478,-500.0,0.00015943,2]
[420407760,1776084227512,-500.0,0.00015943,2]
[420407761,1776084227561,-500.0,0.00015943,2]
[420407762,1776084227611,-500.0,0.00015943,2]
[420407763,1776084227659,-500.0,0.00015943,2]
[420407764,1776084227706,-500.0,0.00015943,2]
[420407765,1776084227761,-500.0,0.00015943,2]
[420407766,1776084227794,-500.0,0.00015943,2]
[420407767,1776084227828,-500.0,0.00015943,2]
[420407768,1776084227859,-500.0,0.00015943,2]
[420407769,1776084227899,-500.0,0.00015943,2]
[420407770,1776084227930,-500.0,0.00015943,2]
[420407771,1776084227968,-500.0,0.00015943,2]
[420407772,1776084228005,-500.0,0.00015943,2]
[420407773,1776084228049,-500.0,0.00015943,2]
[420407774,1776084228087,-500.0,0.00015943,2]
[420407775,1776084228492,-500.0,0.00015943,2]
[420407776,1776084228551,-500.0,0.00015943,2]
[420407777,1776084228593,-500.0,0.00015943,2]
[420407778,1776084228630,-500.0,0.00015943,2]
[420407779,1776084228672,-500.0,0.00015943,2]
[420407780,1776084228712,-500.0,0.00015943,2]
[420407781,1776084228750,-500.0,0.00015943,2]
[420407782,1776084228796,-500.0,0.00015943,2]
[420407783,1776084228838,-500.0,0.00015943,2]
[420407784,1776084228871,-500.0,0.00015943,2]
[420407785,1776084228922,-500.0,0.00015943,2]
[420407786,1776084228956,-546.02561744,0.00015943,2]
[420407787,1776084229000,-500.0,0.00015943,2]
[420407788,1776084229044,-500.0,0.00015943,2]
[420407789,1776084229106,-500.0,0.00015943,2]
[420407790,1776084229152,-500.0,0.00015943,2]
[420407791,1776084229196,-500.0,0.00015943,2]
[420407792,1776084229239,-500.0,0.00015943,2]
[420407793,1776084229279,-500.0,0.00015943,2]
[420407794,1776084229328,-500.0,0.00015943,2]
[420407795,1776084229355,-500.0,0.00015943,2]
[420407796,1776084229395,-500.0,0.00015943,2]
[420407797,1776084229444,-500.0,0.00015943,2]
[420407798,1776084229494,-500.0,0.00015943,2]
[420407799,1776084229548,-500.0,0.00015943,2]
[420407800,1776084229619,-500.0,0.00015943,2]
[420407801,1776084229663,-500.0,0.00015943,2]
[420407802,1776084229712,-500.0,0.00015943,2]
[420407803,1776084229751,-500.0,0.00015943,2]
[420407804,1776084229783,-500.0,0.00015943,2]
[420407805,1776084229814,-500.0,0.00015943,2]
[420407806,1776084229846,-500.0,0.00015943,2]
[420407807,1776084229877,-500.0,0.00015943,2]
[420407808,1776084229904,-500.0,0.00015943,2]
[420407809,1776084229940,-500.0,0.00015943,2]
[420407810,1776084229974,-500.0,0.00015943,2]
[420407811,1776084230006,-500.0,0.00015943,2]
[420407812,1776084230046,-500.0,0.00015943,2]
[420407813,1776084230083,-500.0,0.00015943,2]
[420407814,1776084230116,-500.0,0.00015943,2]
[420407815,1776084230147,-500.0,0.00015943,2]
[420407816,1776084230185,-500.0,0.00015943,2]
[420407817,1776084230221,-500.0,0.00015943,2]
[420407818,1776084230261,-500.0,0.00015943,2]
[420407819,1776084230289,-500.0,0.00015943,2]
[420407820,1776084230334,-500.0,0.00015943,2]
[420407821,1776084230380,-500.0,0.00015943,2]
[420407822,1776084230427,-500.0,0.00015943,2]
[420407823,1776084230469,-500.0,0.00015943,2]
[420407824,1776084230509,-500.0,0.00015943,2]
[420407825,1776084230549,-500.0,0.00015943,2]
[420407826,1776084230583,-500.0,0.00015943,2]
[420407827,1776084230625,-500.0,0.00015943,2]
[420407828,1776084230667,-500.0,0.00015943,2]
[420407829,1776084230735,-500.0,0.00015943,2]
[420407830,1776084230767,-500.0,0.00015943,2]
[420407831,1776084230804,-500.0,0.00015943,2]
[420407832,1776084230855,-500.0,0.00015943,2]
[420407833,1776084230899,-500.0,0.00015943,2]
[420407834,1776084230940,-506.85081619,0.00015943,2]
[420407835,1776084230984,-500.0,0.00015943,2]
[420407836,1776084231031,-500.0,0.00015943,2]
[420407837,1776084231076,-500.0,0.00015943,2]
[420407838,1776084231120,-500.0,0.00015943,2]
[420407839,1776084231159,-500.0,0.00015943,2]
[420407840,1776084231195,-500.0,0.00015943,2]
[420407841,1776084231271,-500.0,0.00015943,2]
[420407842,1776084231313,-500.0,0.00015943,2]
[420407843,1776084231360,-405.46517077,0.00015943,2]
[420407844,1776084231417,-500.0,0.00015943,2]
[420407845,1776084231460,-500.0,0.00015943,2]
[420407846,1776084231495,-500.0,0.00015943,2]
[420407847,1776084231535,-500.0,0.00015943,2]
[420407848,1776084231570,-500.0,0.00015943,2]
[420407849,1776084231611,-500.0,0.00015943,2]
[420407850,1776084231642,-500.0,0.00015943,2]
[420407851,1776084231675,-500.0,0.00015943,2]
[420407852,1776084231717,-500.0,0.00015943,2]
[420407853,1776084231763,-500.0,0.00015943,2]
[420407854,1776084231806,-500.0,0.00015943,2]
[420407855,1776084231881,-500.0,0.00015943,2]
[420407856,1776084231918,-500.0,0.00015943,2]
[420407857,1776084231958,-500.0,0.00015943,2]
[420407858,1776084232001,-500.0,0.00015943,2]
[420407859,1776084232347,-500.0,0.00015943,2]
[420407860,1776084232384,-500.0,0.00015943,2]
[420407861,1776084232418,-500.0,0.00015943,2]
[420407862,1776084232456,-550.0,0.00015943,2]
[420407863,1776084232513,-500.0,0.00015943,2]
[420407864,1776084232638,-500.0,0.00015943,2]
[420407865,1776084232711,-500.0,0.00015943,2]
[420407866,1776084232755,-270.12943247,0.00015943,2]
[420407867,1776084232796,-500.0,0.00015943,2]
[420407868,1776084232834,-500.0,0.00015943,2]
[420407869,1776084232986,-500.0,0.00015943,2]
[420407870,1776084233028,-500.0,0.00015943,2]
[420407871,1776084233071,-500.0,0.00015944,2]
[420407872,1776084233111,-500.0,0.00015944,2]
[420407873,1776084233153,-153056.92,0.00015944,2]
[420407874,1776084233199,-7461.0,0.00015973,2]
[420407875,1776084233240,-501.25647102,0.00015973,2]
[420407876,1776084233269,-501.76496316,0.00015973,2]
[420407877,1776084233301,-500.0,0.00015973,2]
[420407878,1776084233330,-500.79396626,0.00015973,2]
[420407879,1776084233361,-500.0,0.00015973,2]
[420407880,1776084233398,-500.0,0.00015973,2]
[420407881,1776084233431,-500.0,0.00015973,2]
[420407882,1776084233486,-500.0,0.00015973,2]
[420407883,1776084233612,-238.06906048,0.00015984,2]
[420407884,1776084233667,-281.79411385,0.00015984,2]
[420407885,1776084233738,-243.36860089,0.00015984,2]
[420407886,1776084233791,-277.00785488,0.00015984,2]
[420407887,1776084233842,-829.47758094,0.0001599,2]
[420407888,1776084233883,-829.47758094,0.0001599,2]
[420407889,1776084233913,-829.47758094,0.0001599,2]
[420407890,1776084233949,-151.0,0.0001599,2]
[420407891,1776084233978,-151.0,0.0001599,2]
[420407892,1776084234023,-151.0,0.0001599,2]
[420407893,1776084234051,-151.0,0.0001599,2]
[420407894,1776084234082,-151.0,0.0001599,2]
[420407895,1776084234114,-151.0,0.0001599,2]
[420407896,1776084234147,-151.0,0.0001599,2]
[420407897,1776084234175,-151.0,0.0001599,2]
[420407898,1776084234201,-151.0,0.0001599,2]
[420407899,1776084234232,-151.0,0.0001599,2]
[420407900,1776084234262,-151.0,0.0001599,2]
[420407901,1776084234298,-151.0,0.0001599,2]
[420407902,1776084234330,-151.0,0.0001599,2]
[420407903,1776084234366,-151.0,0.0001599,2]
[420407904,1776084234395,-151.0,0.0001599,2]
[420407905,1776084234434,-151.0,0.0001599,2]
[420407906,1776084234478,-151.0,0.0001599,2]
[420407907,1776084234529,-151.0,0.0001599,2]
[420407908,1776084234600,-151.0,0.0001599,2]
[420407909,1776084234642,-769.37,0.00015998,2]
[420407910,1776084234682,-666.0,0.00015999,2]
[420407911,1776084234720,-300.0,0.00015999,2]
[420407912,1776084234755,-300.0,0.00015999,2]
[420407913,1776084234783,-500.0,0.00015999,2]
[420407914,1776084234811,-500.0,0.00015999,2]
[420407915,1776084234842,-500.0,0.00015999,2]
[420407916,1776084234875,-500.0,0.00015999,2]
[420407917,1776084234902,-500.0,0.00015999,2]
[420407918,1776084234934,-500.0,0.00015999,2]
[420407919,1776084234961,-500.0,0.00015999,2]
[420407920,1776084234991,-500.0,0.00015999,2]
[420407921,1776084235023,-500.0,0.00015999,2]
[420407922,1776084235054,-500.0,0.00015999,2]
[420407923,1776084235084,-500.0,0.00015999,2]
[420407924,1776084235120,-500.0,0.00015999,2]
[420407925,1776084235152,-500.0,0.00015999,2]
[420407926,1776084235177,-500.0,0.00015999,2]
[420407927,1776084235211,-500.0,0.00015999,2]
[420407928,1776084235239,-500.0,0.00015999,2]
[420407929,1776084235264,-500.0,0.00015999,2]
[420407930,1776084235292,-500.0,0.00015999,2]
[420407931,1776084235322,-500.0,0.00015999,2]
[420407932,1776084235352,-500.0,0.00015999,2]
[420407933,1776084235386,-500.0,0.00015999,2]
[420407934,1776084235417,-500.0,0.00015999,2]
[420407935,1776084235443,-500.0,0.00015999,2]
[420407936,1776084235474,-500.0,0.00015999,2]
[420407937,1776084235508,-500.0,0.00015999,2]
[420407938,1776084235541,-500.0,0.00015999,2]
[420407939,1776084235581,-500.0,0.00015999,2]
[420407940,1776084235615,-518.75523557,0.00015999,2]
[420407941,1776084235704,-500.0,0.00015999,2]
[420407942,1776084235757,-500.0,0.00015999,2]
[420407943,1776084235782,-500.0,0.00015999,2]
[420407944,1776084235816,-500.0,0.00015999,2]
[420407945,1776084235851,-500.0,0.00015999,2]
[420407946,1776084235882,-500.0,0.00015999,2]
[420407947,1776084235907,-500.0,0.00015999,2]
[420407948,1776084235941,-500.0,0.00015999,2]
[420407949,1776084235973,-500.0,0.00015999,2]
[420407950,1776084235998,-500.0,0.00015999,2]
[420407951,1776084236027,-500.0,0.00015999,2]
[420407952,1776084236056,-500.0,0.00015999,2]
[420407953,1776084236083,-500.0,0.00015999,2]
[420407954,1776084236108,-602.89395647,0.00015999,2]
[420407955,1776084236133,-500.0,0.00015999,2]
[420407956,1776084236158,-500.0,0.00015999,2]
[420407957,1776084236184,-500.0,0.00015999,2]
[420407958,1776084236211,-500.0,0.00015999,2]
[420407959,1776084236242,-500.0,0.00015999,2]
[420407960,1776084236276,-500.0,0.00015999,2]
[420407961,1776084236310,-328.97243185,0.00015999,2]
[420407962,1776084236340,-500.0,0.00015999,2]
[420407963,1776084236372,-500.0,0.00015999,2]
[420407964,1776084236405,-500.0,0.00015999,2]
[420407965,1776084236441,-500.0,0.00015999,2]
[420407966,1776084236478,-500.0,0.00015999,2]
[420407967,1776084236517,-500.0,0.00015999,2]
[420407968,1776084236556,-500.0,0.00015999,2]
[420407969,1776084236600,-500.0,0.00015999,2]
[420407970,1776084236651,-500.0,0.00015999,2]
[420407971,1776084236699,-500.0,0.00015999,2]
[420407972,1776084236750,-500.0,0.00015999,2]
[420407973,1776084236793,-506.54632235,0.00015999,2]
[420407974,1776084236854,-500.0,0.00015999,2]
[420407975,1776084236898,-500.0,0.00015999,2]
[420407976,1776084236943,-500.0,0.00015999,2]
[420407977,1776084236977,-500.0,0.00015999,2]
[420407978,1776084237009,-500.0,0.00015999,2]
[420407979,1776084237042,-500.0,0.00015999,2]
[420407980,1776084237085,-500.0,0.00015999,2]
[420407981,1776084237137,-500.0,0.00015999,2]
[420407982,1776084237179,-500.0,0.00015999,2]
[420407983,1776084237215,-500.0,0.00015999,2]
[420407984,1776084237242,-500.0,0.00015999,2]
[420407985,1776084237274,-500.0,0.00015999,2]
[420407986,1776084237303,-503.96187179,0.00015999,2]
[420407987,1776084237334,-500.0,0.00015999,2]
[420407988,1776084237365,-500.0,0.00015999,2]
[420407989,1776084237391,-500.0,0.00015999,2]
[420407990,1776084237432,-500.0,0.00015999,2]
[420407991,1776084237479,-500.0,0.00015999,2]
[420407992,1776084237515,-500.0,0.00015999,2]
[420407993,1776084237552,-500.0,0.00015999,2]
[420407994,1776084237583,-500.0,0.00015999,2]
[420407995,1776084237621,-500.0,0.00015999,2]
[420407996,1776084237662,-500.0,0.00015999,2]
[420407997,1776084237705,-500.0,0.00015999,2]
[420407998,1776084237743,-500.0,0.00015999,2]
[420407999,1776084237795,-500.0,0.00015999,2]
[420408000,1776084237846,-500.0,0.00015999,2]
[420408001,1776084237880,-500.0,0.00015999,2]
[420408002,1776084237918,-469.56366676,0.00015999,2]
[420408003,1776084237955,-500.0,0.00015999,2]
[420408004,1776084237991,-504.47726605,0.00015999,2]
[420408005,1776084238027,-578.4,0.00015999,2]
[420408006,1776084238066,-184.0,0.00015999,2]
[420408007,1776084238101,-430.95881578,0.00015999,2]
[420408008,1776084238149,-500.0,0.00015999,2]
[420408009,1776084238178,-500.0,0.00015999,2]
[420408010,1776084238213,-500.0,0.00015999,2]
[420408011,1776084238239,-500.0,0.00015999,2]
[420408012,1776084238277,-500.0,0.00015999,2]
[420408013,1776084238321,-500.0,0.00015999,2]
[420408014,1776084238366,-500.0,0.00015999,2]
[420408015,1776084238411,-511.04265375,0.00015999,2]
[420408016,1776084238477,-155.335,0.00015999,2]
[420408017,1776084238519,-3209.46,0.00015999,2]
[420408018,1776084238559,-3209.46,0.00015999,2]
[420408019,1776084238597,-3209.46,0.00015999,2]
[420408020,1776084238633,-3209.46,0.00015999,2]
[420408021,1776084238867,-3209.46,0.00015999,2]
[420408022,1776084238907,-3209.46,0.00015999,2]
[420408023,1776084238938,-3209.46,0.00015999,2]
[420408024,1776084238964,-3209.46,0.00015999,2]
[420408025,1776084238997,-3209.46,0.00015999,2]